{"text_format":"3","workbook":"xlsx","n_sheets":2,"sheets":["Весільний бюджет","Відомості про бюджет"],"not_rendered":{"charts":1,"images":1,"defined_names":2},"read":"whole","date_system":"1900"}

{"sheet":"Весільний бюджет","index":0,"n_rows":16,"n_cols":16,"rows_kept":16,"merged":[[1,1,1,5]]}
[{"$nulls":6}," "]
[null,"ЛЕСЯ + ДМИТРО\nЗВ’ЯЖИ ВУЗОЛ"]
[{"$nulls":7}," "]
[]
[null,"КАТЕГОРІЯ","ОРІЄНТОВНІ ВИТРАТИ","ФАКТИЧНІ ВИТРАТИ","ВІДХИЛЕННЯ","БЮДЖЕТ %",{"$nulls":3},"Невідсортоване","Орієнтовна вартість","Фактична вартість","Орієнтовна вартість – вартість позиції","Позиція","№","Відсортовано"]
[null,{"$f":"P6","v":"Банкет"},{"$f":"VLOOKUP(TBL_Підсумок[[#This Row],[КАТЕГОРІЯ]],TBL_RankingData,2,FALSE)","v":{"v":14500,"d":"14,500₴"}},{"$f":"IF(VLOOKUP(TBL_Підсумок[[#This Row],[КАТЕГОРІЯ]],TBL_RankingData,3,FALSE)=0,\"\",VLOOKUP(TBL_Підсумок[[#This Row],[КАТЕГОРІЯ]],TBL_RankingData,3,FALSE))","v":{"v":12800,"d":"12,800₴"}},{"$f":"IF(OR(TBL_Підсумок[[#This Row],[ОРІЄНТОВНІ ВИТРАТИ]]=\"\",TBL_Підсумок[[#This Row],[ФАКТИЧНІ ВИТРАТИ]]=\"\"),\"\",TBL_Підсумок[[#This Row],[ОРІЄНТОВНІ ВИТРАТИ]]-TBL_Підсумок[[#This Row],[ФАКТИЧНІ ВИТРАТИ]])","v":{"v":1700,"d":"1,700₴"}},{"$f":"TBL_Підсумок[[#This Row],[ОРІЄНТОВНІ ВИТРАТИ]]/SUM(TBL_Підсумок[ОРІЄНТОВНІ ВИТРАТИ])","v":{"v":0.48739495798319327,"d":"48.7%"}},{"$nulls":3},"Банкет",{"$f":"TBL_Банкет[[#Totals],[ОРІЄНТОВНО]]","v":14500},{"$f":"TBL_Банкет[[#Totals],[ФАКТИЧНО]]","v":12800},{"$f":"K6-O6/100","v":14499.99},{"$f":"_xlfn.RANK.AVG(M6,$M$6:$M$15)","v":1},1,{"$f":"INDEX(TBL_RankingData,MATCH(O6,$N$6:$N$15,0),1)","v":"Банкет"}]
[null,{"$f":"P7","v":"Одяг"},{"$f":"VLOOKUP(TBL_Підсумок[[#This Row],[КАТЕГОРІЯ]],TBL_RankingData,2,FALSE)","v":{"v":4000,"d":"4,000₴"}},{"$f":"IF(VLOOKUP(TBL_Підсумок[[#This Row],[КАТЕГОРІЯ]],TBL_RankingData,3,FALSE)=0,\"\",VLOOKUP(TBL_Підсумок[[#This Row],[КАТЕГОРІЯ]],TBL_RankingData,3,FALSE))","v":{"v":2900,"d":"2,900₴"}},{"$f":"IF(OR(TBL_Підсумок[[#This Row],[ОРІЄНТОВНІ ВИТРАТИ]]=\"\",TBL_Підсумок[[#This Row],[ФАКТИЧНІ ВИТРАТИ]]=\"\"),\"\",TBL_Підсумок[[#This Row],[ОРІЄНТОВНІ ВИТРАТИ]]-TBL_Підсумок[[#This Row],[ФАКТИЧНІ ВИТРАТИ]])","v":{"v":1100,"d":"1,100₴"}},{"$f":"TBL_Підсумок[[#This Row],[ОРІЄНТОВНІ ВИТРАТИ]]/SUM(TBL_Підсумок[ОРІЄНТОВНІ ВИТРАТИ])","v":{"v":0.13445378151260504,"d":"13.4%"}},{"$nulls":3},"Одяг",{"$f":"TBL_Одяг[[#Totals],[ОРІЄНТОВНО]]","v":4000},{"$f":"TBL_Одяг[[#Totals],[ФАКТИЧНО]]","v":2900},{"$f":"K7-O7/100","v":3999.98},2,2,"Одяг"]
[null,"Квіти й прикраси",{"$f":"VLOOKUP(TBL_Підсумок[[#This Row],[КАТЕГОРІЯ]],TBL_RankingData,2,FALSE)","v":{"v":3000,"d":"3,000₴"}},{"$f":"IF(VLOOKUP(TBL_Підсумок[[#This Row],[КАТЕГОРІЯ]],TBL_RankingData,3,FALSE)=0,\"\",VLOOKUP(TBL_Підсумок[[#This Row],[КАТЕГОРІЯ]],TBL_RankingData,3,FALSE))","v":""},{"$f":"IF(OR(TBL_Підсумок[[#This Row],[ОРІЄНТОВНІ ВИТРАТИ]]=\"\",TBL_Підсумок[[#This Row],[ФАКТИЧНІ ВИТРАТИ]]=\"\"),\"\",TBL_Підсумок[[#This Row],[ОРІЄНТОВНІ ВИТРАТИ]]-TBL_Підсумок[[#This Row],[ФАКТИЧНІ ВИТРАТИ]])","v":""},{"$f":"TBL_Підсумок[[#This Row],[ОРІЄНТОВНІ ВИТРАТИ]]/SUM(TBL_Підсумок[ОРІЄНТОВНІ ВИТРАТИ])","v":{"v":0.10084033613445378,"d":"10.1%"}},{"$nulls":3},"Квіти й прикраси",{"$f":"TBL_КвітиЙДекор[[#Totals],[ОРІЄНТОВНО]]","v":3000},{"$f":"TBL_КвітиЙДекор[[#Totals],[ФАКТИЧНО]]","v":0},2999.97,3,3,"Квіти й прикраси"]
[null,"Фото- та відеозйомка",{"$f":"VLOOKUP(TBL_Підсумок[[#This Row],[КАТЕГОРІЯ]],TBL_RankingData,2,FALSE)","v":{"v":2500,"d":"2,500₴"}},{"$f":"IF(VLOOKUP(TBL_Підсумок[[#This Row],[КАТЕГОРІЯ]],TBL_RankingData,3,FALSE)=0,\"\",VLOOKUP(TBL_Підсумок[[#This Row],[КАТЕГОРІЯ]],TBL_RankingData,3,FALSE))","v":""},{"$f":"IF(OR(TBL_Підсумок[[#This Row],[ОРІЄНТОВНІ ВИТРАТИ]]=\"\",TBL_Підсумок[[#This Row],[ФАКТИЧНІ ВИТРАТИ]]=\"\"),\"\",TBL_Підсумок[[#This Row],[ОРІЄНТОВНІ ВИТРАТИ]]-TBL_Підсумок[[#This Row],[ФАКТИЧНІ ВИТРАТИ]])","v":""},{"$f":"TBL_Підсумок[[#This Row],[ОРІЄНТОВНІ ВИТРАТИ]]/SUM(TBL_Підсумок[ОРІЄНТОВНІ ВИТРАТИ])","v":{"v":0.08403361344537816,"d":"8.4%"}},{"$nulls":3},"Музика",{"$f":"TBL_Музика[[#Totals],[ОРІЄНТОВНО]]","v":1800},{"$f":"TBL_Музика[[#Totals],[ФАКТИЧНО]]","v":0},1799.96,5,4,"Фото- та відеозйомка"]
[null,"Музика",{"$f":"VLOOKUP(TBL_Підсумок[[#This Row],[КАТЕГОРІЯ]],TBL_RankingData,2,FALSE)","v":{"v":1800,"d":"1,800₴"}},{"$f":"IF(VLOOKUP(TBL_Підсумок[[#This Row],[КАТЕГОРІЯ]],TBL_RankingData,3,FALSE)=0,\"\",VLOOKUP(TBL_Підсумок[[#This Row],[КАТЕГОРІЯ]],TBL_RankingData,3,FALSE))","v":""},{"$f":"IF(OR(TBL_Підсумок[[#This Row],[ОРІЄНТОВНІ ВИТРАТИ]]=\"\",TBL_Підсумок[[#This Row],[ФАКТИЧНІ ВИТРАТИ]]=\"\"),\"\",TBL_Підсумок[[#This Row],[ОРІЄНТОВНІ ВИТРАТИ]]-TBL_Підсумок[[#This Row],[ФАКТИЧНІ ВИТРАТИ]])","v":""},{"$f":"TBL_Підсумок[[#This Row],[ОРІЄНТОВНІ ВИТРАТИ]]/SUM(TBL_Підсумок[ОРІЄНТОВНІ ВИТРАТИ])","v":{"v":0.06050420168067227,"d":"6.1%"}},{"$nulls":3},"Фото- та відеозйомка",{"$f":"TBL_ФотоТаВідео[[#Totals],[ОРІЄНТОВНО]]","v":2500},{"$f":"TBL_ФотоТаВідео[[#Totals],[ФАКТИЧНО]]","v":0},2499.95,4,5,"Музика"]
[null,"Сувеніри та подарунки",{"$f":"VLOOKUP(TBL_Підсумок[[#This Row],[КАТЕГОРІЯ]],TBL_RankingData,2,FALSE)","v":{"v":1100,"d":"1,100₴"}},{"$f":"IF(VLOOKUP(TBL_Підсумок[[#This Row],[КАТЕГОРІЯ]],TBL_RankingData,3,FALSE)=0,\"\",VLOOKUP(TBL_Підсумок[[#This Row],[КАТЕГОРІЯ]],TBL_RankingData,3,FALSE))","v":""},{"$f":"IF(OR(TBL_Підсумок[[#This Row],[ОРІЄНТОВНІ ВИТРАТИ]]=\"\",TBL_Підсумок[[#This Row],[ФАКТИЧНІ ВИТРАТИ]]=\"\"),\"\",TBL_Підсумок[[#This Row],[ОРІЄНТОВНІ ВИТРАТИ]]-TBL_Підсумок[[#This Row],[ФАКТИЧНІ ВИТРАТИ]])","v":""},{"$f":"TBL_Підсумок[[#This Row],[ОРІЄНТОВНІ ВИТРАТИ]]/SUM(TBL_Підсумок[ОРІЄНТОВНІ ВИТРАТИ])","v":{"v":0.03697478991596639,"d":"3.7%"}},{"$nulls":3},"Сувеніри та подарунки",{"$f":"TBL_СувеніриТаПодарунки[[#Totals],[ОРІЄНТОВНО]]","v":1100},{"$f":"TBL_СувеніриТаПодарунки[[#Totals],[ФАКТИЧНО]]","v":0},1099.94,6,6,"Сувеніри та подарунки"]
[null,{"$f":"P12","v":"Весільні обручки"},{"$f":"VLOOKUP(TBL_Підсумок[[#This Row],[КАТЕГОРІЯ]],TBL_RankingData,2,FALSE)","v":{"v":1100,"d":"1,100₴"}},{"$f":"IF(VLOOKUP(TBL_Підсумок[[#This Row],[КАТЕГОРІЯ]],TBL_RankingData,3,FALSE)=0,\"\",VLOOKUP(TBL_Підсумок[[#This Row],[КАТЕГОРІЯ]],TBL_RankingData,3,FALSE))","v":""},{"$f":"IF(OR(TBL_Підсумок[[#This Row],[ОРІЄНТОВНІ ВИТРАТИ]]=\"\",TBL_Підсумок[[#This Row],[ФАКТИЧНІ ВИТРАТИ]]=\"\"),\"\",TBL_Підсумок[[#This Row],[ОРІЄНТОВНІ ВИТРАТИ]]-TBL_Підсумок[[#This Row],[ФАКТИЧНІ ВИТРАТИ]])","v":""},{"$f":"TBL_Підсумок[[#This Row],[ОРІЄНТОВНІ ВИТРАТИ]]/SUM(TBL_Підсумок[ОРІЄНТОВНІ ВИТРАТИ])","v":{"v":0.03697478991596639,"d":"3.7%"}},{"$nulls":3},"Церемонія",{"$f":"TBL_Церемонія[[#Totals],[ОРІЄНТОВНО]]","v":800},{"$f":"TBL_Церемонія[[#Totals],[ФАКТИЧНО]]","v":0},799.93,8,7,"Весільні обручки"]
[null,"Церемонія",{"$f":"VLOOKUP(TBL_Підсумок[[#This Row],[КАТЕГОРІЯ]],TBL_RankingData,2,FALSE)","v":{"v":800,"d":"800₴"}},{"$f":"IF(VLOOKUP(TBL_Підсумок[[#This Row],[КАТЕГОРІЯ]],TBL_RankingData,3,FALSE)=0,\"\",VLOOKUP(TBL_Підсумок[[#This Row],[КАТЕГОРІЯ]],TBL_RankingData,3,FALSE))","v":""},{"$f":"IF(OR(TBL_Підсумок[[#This Row],[ОРІЄНТОВНІ ВИТРАТИ]]=\"\",TBL_Підсумок[[#This Row],[ФАКТИЧНІ ВИТРАТИ]]=\"\"),\"\",TBL_Підсумок[[#This Row],[ОРІЄНТОВНІ ВИТРАТИ]]-TBL_Підсумок[[#This Row],[ФАКТИЧНІ ВИТРАТИ]])","v":""},{"$f":"TBL_Підсумок[[#This Row],[ОРІЄНТОВНІ ВИТРАТИ]]/SUM(TBL_Підсумок[ОРІЄНТОВНІ ВИТРАТИ])","v":{"v":0.02689075630252101,"d":"2.7%"}},{"$nulls":3},"Канцтовари",{"$f":"TBL_Канцтовари[[#Totals],[ОРІЄНТОВНО]]","v":500},{"$f":"TBL_Канцтовари[[#Totals],[ФАКТИЧНО]]","v":0},499.92,9,8,"Церемонія"]
[null,"Канцтовари",{"$f":"VLOOKUP(TBL_Підсумок[[#This Row],[КАТЕГОРІЯ]],TBL_RankingData,2,FALSE)","v":{"v":500,"d":"500₴"}},{"$f":"IF(VLOOKUP(TBL_Підсумок[[#This Row],[КАТЕГОРІЯ]],TBL_RankingData,3,FALSE)=0,\"\",VLOOKUP(TBL_Підсумок[[#This Row],[КАТЕГОРІЯ]],TBL_RankingData,3,FALSE))","v":""},{"$f":"IF(OR(TBL_Підсумок[[#This Row],[ОРІЄНТОВНІ ВИТРАТИ]]=\"\",TBL_Підсумок[[#This Row],[ФАКТИЧНІ ВИТРАТИ]]=\"\"),\"\",TBL_Підсумок[[#This Row],[ОРІЄНТОВНІ ВИТРАТИ]]-TBL_Підсумок[[#This Row],[ФАКТИЧНІ ВИТРАТИ]])","v":""},{"$f":"TBL_Підсумок[[#This Row],[ОРІЄНТОВНІ ВИТРАТИ]]/SUM(TBL_Підсумок[ОРІЄНТОВНІ ВИТРАТИ])","v":{"v":0.01680672268907563,"d":"1.7%"}},{"$nulls":3},"Весільні обручки",{"$f":"TBL_ВесільніОбручки[[#Totals],[ОРІЄНТОВНО]]","v":1100},{"$f":"TBL_ВесільніОбручки[[#Totals],[ФАКТИЧНО]]","v":0},1099.91,7,9,"Канцтовари"]
[null,"Транспорт",{"$f":"VLOOKUP(TBL_Підсумок[[#This Row],[КАТЕГОРІЯ]],TBL_RankingData,2,FALSE)","v":{"v":450,"d":"450₴"}},{"$f":"IF(VLOOKUP(TBL_Підсумок[[#This Row],[КАТЕГОРІЯ]],TBL_RankingData,3,FALSE)=0,\"\",VLOOKUP(TBL_Підсумок[[#This Row],[КАТЕГОРІЯ]],TBL_RankingData,3,FALSE))","v":""},{"$f":"IF(OR(TBL_Підсумок[[#This Row],[ОРІЄНТОВНІ ВИТРАТИ]]=\"\",TBL_Підсумок[[#This Row],[ФАКТИЧНІ ВИТРАТИ]]=\"\"),\"\",TBL_Підсумок[[#This Row],[ОРІЄНТОВНІ ВИТРАТИ]]-TBL_Підсумок[[#This Row],[ФАКТИЧНІ ВИТРАТИ]])","v":""},{"$f":"TBL_Підсумок[[#This Row],[ОРІЄНТОВНІ ВИТРАТИ]]/SUM(TBL_Підсумок[ОРІЄНТОВНІ ВИТРАТИ])","v":{"v":0.015126050420168067,"d":"1.5%"}},{"$nulls":3},"Транспорт",{"$f":"TBL_Транспорт[[#Totals],[ОРІЄНТОВНО]]","v":450},{"$f":"TBL_Транспорт[[#Totals],[ФАКТИЧНО]]","v":0},449.9,10,10,"Транспорт"]
[null,"Підсумок",{"$f":"SUBTOTAL(109,TBL_Підсумок[ОРІЄНТОВНІ ВИТРАТИ])","v":{"v":29750,"d":"29,750₴"}},{"$f":"SUBTOTAL(109,TBL_Підсумок[ФАКТИЧНІ ВИТРАТИ])","v":{"v":15700,"d":"15,700₴"}},{"$f":"TBL_Підсумок[[#Totals],[ОРІЄНТОВНІ ВИТРАТИ]]-TBL_Підсумок[[#Totals],[ФАКТИЧНІ ВИТРАТИ]]","v":{"v":14050,"d":"14,050₴"}},{"$f":"SUBTOTAL(109,TBL_Підсумок[БЮДЖЕТ %])","v":{"v":1,"d":"100%"}}]

{"sheet":"Відомості про бюджет","index":1,"n_rows":91,"n_cols":6,"rows_kept":91}
[{"$nulls":5}," "]
[null,"ВІДОМОСТІ ПРО БЮДЖЕТ"]
[]
[null,"БАНКЕТ","ОРІЄНТОВНО","ФАКТИЧНО","ВІДХИЛЕННЯ"]
[null,"Місце проведення й оренда",{"v":8000,"d":"8,000.00₴"},{"v":7800,"d":"7,800.00₴"},{"$f":"IF(OR(TBL_Банкет[[#This Row],[ОРІЄНТОВНО]]=\"\",TBL_Банкет[[#This Row],[ФАКТИЧНО]]=\"\"),\"\",TBL_Банкет[[#This Row],[ОРІЄНТОВНО]]-TBL_Банкет[[#This Row],[ФАКТИЧНО]])","v":{"v":200,"d":"200.00₴"}}]
[null,"Їжа й обслуговування",{"v":4000,"d":"4,000.00₴"},{"v":4200,"d":"4,200.00₴"},{"$f":"IF(OR(TBL_Банкет[[#This Row],[ОРІЄНТОВНО]]=\"\",TBL_Банкет[[#This Row],[ФАКТИЧНО]]=\"\"),\"\",TBL_Банкет[[#This Row],[ОРІЄНТОВНО]]-TBL_Банкет[[#This Row],[ФАКТИЧНО]])","v":{"v":-200,"d":"-200.00₴"}}]
[null,"Напої",{"v":1000,"d":"1,000.00₴"},{"v":800,"d":"800.00₴"},{"$f":"IF(OR(TBL_Банкет[[#This Row],[ОРІЄНТОВНО]]=\"\",TBL_Банкет[[#This Row],[ФАКТИЧНО]]=\"\"),\"\",TBL_Банкет[[#This Row],[ОРІЄНТОВНО]]-TBL_Банкет[[#This Row],[ФАКТИЧНО]])","v":{"v":200,"d":"200.00₴"}}]
[null,"Торт",{"v":1000,"d":"1,000.00₴"},null,{"$f":"IF(OR(TBL_Банкет[[#This Row],[ОРІЄНТОВНО]]=\"\",TBL_Банкет[[#This Row],[ФАКТИЧНО]]=\"\"),\"\",TBL_Банкет[[#This Row],[ОРІЄНТОВНО]]-TBL_Банкет[[#This Row],[ФАКТИЧНО]])","v":""}]
[null,"Інші витрати",{"v":500,"d":"500.00₴"},null,{"$f":"IF(OR(TBL_Банкет[[#This Row],[ОРІЄНТОВНО]]=\"\",TBL_Банкет[[#This Row],[ФАКТИЧНО]]=\"\"),\"\",TBL_Банкет[[#This Row],[ОРІЄНТОВНО]]-TBL_Банкет[[#This Row],[ФАКТИЧНО]])","v":""}]
[null,"ЗАГАЛЬНІ ВИТРАТИ НА БАНКЕТ",{"$f":"SUBTOTAL(109,TBL_Банкет[ОРІЄНТОВНО])","v":{"v":14500,"d":"14,500.00₴"}},{"$f":"SUBTOTAL(109,TBL_Банкет[ФАКТИЧНО])","v":{"v":12800,"d":"12,800.00₴"}},{"$f":"TBL_Банкет[[#Totals],[ОРІЄНТОВНО]]-TBL_Банкет[[#Totals],[ФАКТИЧНО]]","v":{"v":1700,"d":"1,700.00₴"}}]
[]
[]
[null,"ОДЯГ","ОРІЄНТОВНО","ФАКТИЧНО","ВІДХИЛЕННЯ"]
[null,"Смокінг, костюм, сукня",{"v":3000,"d":"3,000.00₴"},{"v":2900,"d":"2,900.00₴"},{"$f":"IF(OR(TBL_Одяг[[#This Row],[ОРІЄНТОВНО]]=\"\",TBL_Одяг[[#This Row],[ФАКТИЧНО]]=\"\"),\"\",TBL_Одяг[[#This Row],[ОРІЄНТОВНО]]-TBL_Одяг[[#This Row],[ФАКТИЧНО]])","v":{"v":100,"d":"100.00₴"}}]
[null,"Зміни",{"v":100,"d":"100.00₴"},null,{"$f":"IF(OR(TBL_Одяг[[#This Row],[ОРІЄНТОВНО]]=\"\",TBL_Одяг[[#This Row],[ФАКТИЧНО]]=\"\"),\"\",TBL_Одяг[[#This Row],[ОРІЄНТОВНО]]-TBL_Одяг[[#This Row],[ФАКТИЧНО]])","v":""}]
[null,"Фігурки на торт і фата",{"v":200,"d":"200.00₴"},null,{"$f":"IF(OR(TBL_Одяг[[#This Row],[ОРІЄНТОВНО]]=\"\",TBL_Одяг[[#This Row],[ФАКТИЧНО]]=\"\"),\"\",TBL_Одяг[[#This Row],[ОРІЄНТОВНО]]-TBL_Одяг[[#This Row],[ФАКТИЧНО]])","v":""}]
[null,"Аксесуари",{"v":100,"d":"100.00₴"},null,{"$f":"IF(OR(TBL_Одяг[[#This Row],[ОРІЄНТОВНО]]=\"\",TBL_Одяг[[#This Row],[ФАКТИЧНО]]=\"\"),\"\",TBL_Одяг[[#This Row],[ОРІЄНТОВНО]]-TBL_Одяг[[#This Row],[ФАКТИЧНО]])","v":""}]
[null,"Зачіска та макіяж",{"v":500,"d":"500.00₴"},null,{"$f":"IF(OR(TBL_Одяг[[#This Row],[ОРІЄНТОВНО]]=\"\",TBL_Одяг[[#This Row],[ФАКТИЧНО]]=\"\"),\"\",TBL_Одяг[[#This Row],[ОРІЄНТОВНО]]-TBL_Одяг[[#This Row],[ФАКТИЧНО]])","v":""}]
[null,"Інші витрати",{"v":100,"d":"100.00₴"},null,{"$f":"IF(OR(TBL_Одяг[[#This Row],[ОРІЄНТОВНО]]=\"\",TBL_Одяг[[#This Row],[ФАКТИЧНО]]=\"\"),\"\",TBL_Одяг[[#This Row],[ОРІЄНТОВНО]]-TBL_Одяг[[#This Row],[ФАКТИЧНО]])","v":""}]
[null,"ЗАГАЛЬНІ ВИТРАТИ НА ОДЯГ",{"$f":"SUBTOTAL(109,TBL_Одяг[ОРІЄНТОВНО])","v":{"v":4000,"d":"4,000.00₴"}},{"$f":"SUBTOTAL(109,TBL_Одяг[ФАКТИЧНО])","v":{"v":2900,"d":"2,900.00₴"}},{"$f":"TBL_Одяг[[#Totals],[ОРІЄНТОВНО]]-TBL_Одяг[[#Totals],[ФАКТИЧНО]]","v":{"v":1100,"d":"1,100.00₴"}}]
[]
[]
[null,"КВІТИ ТА ПРИКРАСИ","ОРІЄНТОВНО","ФАКТИЧНО","ВІДХИЛЕННЯ"]
[null,"Квіткові композиції для церемонії",{"v":1000,"d":"1,000.00₴"},null,{"$f":"IF(OR(TBL_КвітиЙДекор[[#This Row],[ОРІЄНТОВНО]]=\"\",TBL_КвітиЙДекор[[#This Row],[ФАКТИЧНО]]=\"\"),\"\",TBL_КвітиЙДекор[[#This Row],[ОРІЄНТОВНО]]-TBL_КвітиЙДекор[[#This Row],[ФАКТИЧНО]])","v":""}]
[null,"Кошик і квіти для дівчаток, які розсипають пелюстки",{"v":500,"d":"500.00₴"},null,{"$f":"IF(OR(TBL_КвітиЙДекор[[#This Row],[ОРІЄНТОВНО]]=\"\",TBL_КвітиЙДекор[[#This Row],[ФАКТИЧНО]]=\"\"),\"\",TBL_КвітиЙДекор[[#This Row],[ОРІЄНТОВНО]]-TBL_КвітиЙДекор[[#This Row],[ФАКТИЧНО]])","v":""}]
[null,"Подушка з обручками",{"v":100,"d":"100.00₴"},null,{"$f":"IF(OR(TBL_КвітиЙДекор[[#This Row],[ОРІЄНТОВНО]]=\"\",TBL_КвітиЙДекор[[#This Row],[ФАКТИЧНО]]=\"\"),\"\",TBL_КвітиЙДекор[[#This Row],[ОРІЄНТОВНО]]-TBL_КвітиЙДекор[[#This Row],[ФАКТИЧНО]])","v":""}]
[null,"Букети",{"v":500,"d":"500.00₴"},null,{"$f":"IF(OR(TBL_КвітиЙДекор[[#This Row],[ОРІЄНТОВНО]]=\"\",TBL_КвітиЙДекор[[#This Row],[ФАКТИЧНО]]=\"\"),\"\",TBL_КвітиЙДекор[[#This Row],[ОРІЄНТОВНО]]-TBL_КвітиЙДекор[[#This Row],[ФАКТИЧНО]])","v":""}]
[null,"Бутоньєрки",{"v":100,"d":"100.00₴"},null,{"$f":"IF(OR(TBL_КвітиЙДекор[[#This Row],[ОРІЄНТОВНО]]=\"\",TBL_КвітиЙДекор[[#This Row],[ФАКТИЧНО]]=\"\"),\"\",TBL_КвітиЙДекор[[#This Row],[ОРІЄНТОВНО]]-TBL_КвітиЙДекор[[#This Row],[ФАКТИЧНО]])","v":""}]
[null,"Браслети",{"v":200,"d":"200.00₴"},null,{"$f":"IF(OR(TBL_КвітиЙДекор[[#This Row],[ОРІЄНТОВНО]]=\"\",TBL_КвітиЙДекор[[#This Row],[ФАКТИЧНО]]=\"\"),\"\",TBL_КвітиЙДекор[[#This Row],[ОРІЄНТОВНО]]-TBL_КвітиЙДекор[[#This Row],[ФАКТИЧНО]])","v":""}]
[null,"Прикраси для місця проведення",{"v":300,"d":"300.00₴"},null,{"$f":"IF(OR(TBL_КвітиЙДекор[[#This Row],[ОРІЄНТОВНО]]=\"\",TBL_КвітиЙДекор[[#This Row],[ФАКТИЧНО]]=\"\"),\"\",TBL_КвітиЙДекор[[#This Row],[ОРІЄНТОВНО]]-TBL_КвітиЙДекор[[#This Row],[ФАКТИЧНО]])","v":""}]
[null,"Освітлення",{"v":200,"d":"200.00₴"},null,{"$f":"IF(OR(TBL_КвітиЙДекор[[#This Row],[ОРІЄНТОВНО]]=\"\",TBL_КвітиЙДекор[[#This Row],[ФАКТИЧНО]]=\"\"),\"\",TBL_КвітиЙДекор[[#This Row],[ОРІЄНТОВНО]]-TBL_КвітиЙДекор[[#This Row],[ФАКТИЧНО]])","v":""}]
[null,"Інші витрати",{"v":100,"d":"100.00₴"},null,{"$f":"IF(OR(TBL_КвітиЙДекор[[#This Row],[ОРІЄНТОВНО]]=\"\",TBL_КвітиЙДекор[[#This Row],[ФАКТИЧНО]]=\"\"),\"\",TBL_КвітиЙДекор[[#This Row],[ОРІЄНТОВНО]]-TBL_КвітиЙДекор[[#This Row],[ФАКТИЧНО]])","v":""}]
[null,"ЗАГАЛЬНІ ВИТРАТИ НА КВІТИ ТА ПРИКРАСИ",{"$f":"SUBTOTAL(109,TBL_КвітиЙДекор[ОРІЄНТОВНО])","v":{"v":3000,"d":"3,000.00₴"}},{"$f":"SUBTOTAL(109,TBL_КвітиЙДекор[ФАКТИЧНО])","v":{"v":0,"d":"0.00₴"}},{"$f":"TBL_КвітиЙДекор[[#Totals],[ОРІЄНТОВНО]]-TBL_КвітиЙДекор[[#Totals],[ФАКТИЧНО]]","v":{"v":3000,"d":"3,000.00₴"}}]
[]
[]
[null,"МУЗИКА","ОРІЄНТОВНО","ФАКТИЧНО","ВІДХИЛЕННЯ"]
[null,"Музиканти на церемонію",{"v":700,"d":"700.00₴"},null,{"$f":"IF(OR(TBL_Музика[[#This Row],[ОРІЄНТОВНО]]=\"\",TBL_Музика[[#This Row],[ФАКТИЧНО]]=\"\"),\"\",TBL_Музика[[#This Row],[ОРІЄНТОВНО]]-TBL_Музика[[#This Row],[ФАКТИЧНО]])","v":""}]
[null,"Музиканти для перерви на коктейлі",{"v":300,"d":"300.00₴"},null,{"$f":"IF(OR(TBL_Музика[[#This Row],[ОРІЄНТОВНО]]=\"\",TBL_Музика[[#This Row],[ФАКТИЧНО]]=\"\"),\"\",TBL_Музика[[#This Row],[ОРІЄНТОВНО]]-TBL_Музика[[#This Row],[ФАКТИЧНО]])","v":""}]
[null,"Музичний гурт, ді-джей або розважальна програма",{"v":200,"d":"200.00₴"},null,{"$f":"IF(OR(TBL_Музика[[#This Row],[ОРІЄНТОВНО]]=\"\",TBL_Музика[[#This Row],[ФАКТИЧНО]]=\"\"),\"\",TBL_Музика[[#This Row],[ОРІЄНТОВНО]]-TBL_Музика[[#This Row],[ФАКТИЧНО]])","v":""}]
[null,"Прокат звукового обладнання або танц-полу",{"v":400,"d":"400.00₴"},null,{"$f":"IF(OR(TBL_Музика[[#This Row],[ОРІЄНТОВНО]]=\"\",TBL_Музика[[#This Row],[ФАКТИЧНО]]=\"\"),\"\",TBL_Музика[[#This Row],[ОРІЄНТОВНО]]-TBL_Музика[[#This Row],[ФАКТИЧНО]])","v":""}]
[null,"Інші витрати",{"v":200,"d":"200.00₴"},null,{"$f":"IF(OR(TBL_Музика[[#This Row],[ОРІЄНТОВНО]]=\"\",TBL_Музика[[#This Row],[ФАКТИЧНО]]=\"\"),\"\",TBL_Музика[[#This Row],[ОРІЄНТОВНО]]-TBL_Музика[[#This Row],[ФАКТИЧНО]])","v":""}]
[null,"ЗАГАЛЬНІ ВИТРАТИ НА МУЗИКУ",{"$f":"SUBTOTAL(109,TBL_Музика[ОРІЄНТОВНО])","v":{"v":1800,"d":"1,800.00₴"}},{"$f":"SUBTOTAL(109,TBL_Музика[ФАКТИЧНО])","v":{"v":0,"d":"0.00₴"}},{"$f":"TBL_Музика[[#Totals],[ОРІЄНТОВНО]]-TBL_Музика[[#Totals],[ФАКТИЧНО]]","v":{"v":1800,"d":"1,800.00₴"}}]
[]
[]
[null,"ФОТОЗЙОМКА І ВІДЕО","ОРІЄНТОВНО","ФАКТИЧНО","ВІДХИЛЕННЯ"]
[null,"Фотографії",{"v":1000,"d":"1,000.00₴"},null,{"$f":"IF(OR(TBL_ФотоТаВідео[[#This Row],[ОРІЄНТОВНО]]=\"\",TBL_ФотоТаВідео[[#This Row],[ФАКТИЧНО]]=\"\"),\"\",TBL_ФотоТаВідео[[#This Row],[ОРІЄНТОВНО]]-TBL_ФотоТаВідео[[#This Row],[ФАКТИЧНО]])","v":""}]
[null,"Відеозйомка",{"v":800,"d":"800.00₴"},null,{"$f":"IF(OR(TBL_ФотоТаВідео[[#This Row],[ОРІЄНТОВНО]]=\"\",TBL_ФотоТаВідео[[#This Row],[ФАКТИЧНО]]=\"\"),\"\",TBL_ФотоТаВідео[[#This Row],[ОРІЄНТОВНО]]-TBL_ФотоТаВідео[[#This Row],[ФАКТИЧНО]])","v":""}]
[null,"Додаткові роздруківки й альбоми",{"v":500,"d":"500.00₴"},null,{"$f":"IF(OR(TBL_ФотоТаВідео[[#This Row],[ОРІЄНТОВНО]]=\"\",TBL_ФотоТаВідео[[#This Row],[ФАКТИЧНО]]=\"\"),\"\",TBL_ФотоТаВідео[[#This Row],[ОРІЄНТОВНО]]-TBL_ФотоТаВідео[[#This Row],[ФАКТИЧНО]])","v":""}]
[null,"Інші витрати",{"v":200,"d":"200.00₴"},null,{"$f":"IF(OR(TBL_ФотоТаВідео[[#This Row],[ОРІЄНТОВНО]]=\"\",TBL_ФотоТаВідео[[#This Row],[ФАКТИЧНО]]=\"\"),\"\",TBL_ФотоТаВідео[[#This Row],[ОРІЄНТОВНО]]-TBL_ФотоТаВідео[[#This Row],[ФАКТИЧНО]])","v":""}]
[null,"ЗАГАЛЬНІ ВИТРАТИ НА ФОТО І ВІДЕО",{"$f":"SUBTOTAL(109,TBL_ФотоТаВідео[ОРІЄНТОВНО])","v":{"v":2500,"d":"2,500.00₴"}},{"$f":"SUBTOTAL(109,TBL_ФотоТаВідео[ФАКТИЧНО])","v":{"v":0,"d":"0.00₴"}},{"$f":"TBL_ФотоТаВідео[[#Totals],[ОРІЄНТОВНО]]-TBL_ФотоТаВідео[[#Totals],[ФАКТИЧНО]]","v":{"v":2500,"d":"2,500.00₴"}}]
[]
[]
[null,"СУВЕНІРИ ТА ПОДАРУНКАМИ","ОРІЄНТОВНО","ФАКТИЧНО","ВІДХИЛЕННЯ"]
[null,"Вітальні подарунки",{"v":700,"d":"700.00₴"},null,{"$f":"IF(OR(TBL_СувеніриТаПодарунки[[#This Row],[ОРІЄНТОВНО]]=\"\",TBL_СувеніриТаПодарунки[[#This Row],[ФАКТИЧНО]]=\"\"),\"\",TBL_СувеніриТаПодарунки[[#This Row],[ОРІЄНТОВНО]]-TBL_СувеніриТаПодарунки[[#This Row],[ФАКТИЧНО]])","v":""}]
[null,"Подарунки на вечірку",{"v":200,"d":"200.00₴"},null,{"$f":"IF(OR(TBL_СувеніриТаПодарунки[[#This Row],[ОРІЄНТОВНО]]=\"\",TBL_СувеніриТаПодарунки[[#This Row],[ФАКТИЧНО]]=\"\"),\"\",TBL_СувеніриТаПодарунки[[#This Row],[ОРІЄНТОВНО]]-TBL_СувеніриТаПодарунки[[#This Row],[ФАКТИЧНО]])","v":""}]
[null,"Інші витрати",{"v":200,"d":"200.00₴"},null,{"$f":"IF(OR(TBL_СувеніриТаПодарунки[[#This Row],[ОРІЄНТОВНО]]=\"\",TBL_СувеніриТаПодарунки[[#This Row],[ФАКТИЧНО]]=\"\"),\"\",TBL_СувеніриТаПодарунки[[#This Row],[ОРІЄНТОВНО]]-TBL_СувеніриТаПодарунки[[#This Row],[ФАКТИЧНО]])","v":""}]
[null,"ЗАГАЛЬНІ ВИТРАТИ НА СУВЕНІРИ ТА ПОДАРУНКИ",{"$f":"SUBTOTAL(109,TBL_СувеніриТаПодарунки[ОРІЄНТОВНО])","v":{"v":1100,"d":"1,100.00₴"}},{"$f":"SUBTOTAL(109,TBL_СувеніриТаПодарунки[ФАКТИЧНО])","v":{"v":0,"d":"0.00₴"}},{"$f":"TBL_СувеніриТаПодарунки[[#Totals],[ОРІЄНТОВНО]]-TBL_СувеніриТаПодарунки[[#Totals],[ФАКТИЧНО]]","v":{"v":1100,"d":"1,100.00₴"}}]
[]
[]
[null,"ЦЕРЕМОНІЯ","ОРІЄНТОВНО","ФАКТИЧНО","ВІДХИЛЕННЯ"]
[null,"Оренда місця проведення",{"v":500,"d":"500.00₴"},null,{"$f":"IF(OR(TBL_Церемонія[[#This Row],[ОРІЄНТОВНО]]=\"\",TBL_Церемонія[[#This Row],[ФАКТИЧНО]]=\"\"),\"\",TBL_Церемонія[[#This Row],[ОРІЄНТОВНО]]-TBL_Церемонія[[#This Row],[ФАКТИЧНО]])","v":""}]
[null,"Плата офіціантам або пожертва для церкви",{"v":200,"d":"200.00₴"},null,{"$f":"IF(OR(TBL_Церемонія[[#This Row],[ОРІЄНТОВНО]]=\"\",TBL_Церемонія[[#This Row],[ФАКТИЧНО]]=\"\"),\"\",TBL_Церемонія[[#This Row],[ОРІЄНТОВНО]]-TBL_Церемонія[[#This Row],[ФАКТИЧНО]])","v":""}]
[null,"Інші витрати",{"v":100,"d":"100.00₴"},null,{"$f":"IF(OR(TBL_Церемонія[[#This Row],[ОРІЄНТОВНО]]=\"\",TBL_Церемонія[[#This Row],[ФАКТИЧНО]]=\"\"),\"\",TBL_Церемонія[[#This Row],[ОРІЄНТОВНО]]-TBL_Церемонія[[#This Row],[ФАКТИЧНО]])","v":""}]
[null,"ЗАГАЛЬНІ ВИТРАТИ НА ЦЕРЕМОНІЮ",{"$f":"SUBTOTAL(109,TBL_Церемонія[ОРІЄНТОВНО])","v":{"v":800,"d":"800.00₴"}},{"$f":"SUBTOTAL(109,TBL_Церемонія[ФАКТИЧНО])","v":{"v":0,"d":"0.00₴"}},{"$f":"TBL_Церемонія[[#Totals],[ОРІЄНТОВНО]]-TBL_Церемонія[[#Totals],[ФАКТИЧНО]]","v":{"v":800,"d":"800.00₴"}}]
[]
[]
[null,"КАНЦТОВАРИ","ОРІЄНТОВНО","ФАКТИЧНО","ВІДХИЛЕННЯ"]
[null,"Листівки-запрошення",{"v":50,"d":"50.00₴"},null,{"$f":"IF(OR(TBL_Канцтовари[[#This Row],[ОРІЄНТОВНО]]=\"\",TBL_Канцтовари[[#This Row],[ФАКТИЧНО]]=\"\"),\"\",TBL_Канцтовари[[#This Row],[ОРІЄНТОВНО]]-TBL_Канцтовари[[#This Row],[ФАКТИЧНО]])","v":""}]
[null,"Запрошення та бланки для відповідей",{"v":100,"d":"100.00₴"},null,{"$f":"IF(OR(TBL_Канцтовари[[#This Row],[ОРІЄНТОВНО]]=\"\",TBL_Канцтовари[[#This Row],[ФАКТИЧНО]]=\"\"),\"\",TBL_Канцтовари[[#This Row],[ОРІЄНТОВНО]]-TBL_Канцтовари[[#This Row],[ФАКТИЧНО]])","v":""}]
[null,"Програми",{"v":50,"d":"50.00₴"},null,{"$f":"IF(OR(TBL_Канцтовари[[#This Row],[ОРІЄНТОВНО]]=\"\",TBL_Канцтовари[[#This Row],[ФАКТИЧНО]]=\"\"),\"\",TBL_Канцтовари[[#This Row],[ОРІЄНТОВНО]]-TBL_Канцтовари[[#This Row],[ФАКТИЧНО]])","v":""}]
[null,"Картки розсадки та карта місця",{"v":50,"d":"50.00₴"},null,{"$f":"IF(OR(TBL_Канцтовари[[#This Row],[ОРІЄНТОВНО]]=\"\",TBL_Канцтовари[[#This Row],[ФАКТИЧНО]]=\"\"),\"\",TBL_Канцтовари[[#This Row],[ОРІЄНТОВНО]]-TBL_Канцтовари[[#This Row],[ФАКТИЧНО]])","v":""}]
[null,"Картки меню",{"v":50,"d":"50.00₴"},null,{"$f":"IF(OR(TBL_Канцтовари[[#This Row],[ОРІЄНТОВНО]]=\"\",TBL_Канцтовари[[#This Row],[ФАКТИЧНО]]=\"\"),\"\",TBL_Канцтовари[[#This Row],[ОРІЄНТОВНО]]-TBL_Канцтовари[[#This Row],[ФАКТИЧНО]])","v":""}]
[null,"Листівки з подякою",{"v":50,"d":"50.00₴"},null,{"$f":"IF(OR(TBL_Канцтовари[[#This Row],[ОРІЄНТОВНО]]=\"\",TBL_Канцтовари[[#This Row],[ФАКТИЧНО]]=\"\"),\"\",TBL_Канцтовари[[#This Row],[ОРІЄНТОВНО]]-TBL_Канцтовари[[#This Row],[ФАКТИЧНО]])","v":""}]
[null,"Поштові витрати",{"v":50,"d":"50.00₴"},null,{"$f":"IF(OR(TBL_Канцтовари[[#This Row],[ОРІЄНТОВНО]]=\"\",TBL_Канцтовари[[#This Row],[ФАКТИЧНО]]=\"\"),\"\",TBL_Канцтовари[[#This Row],[ОРІЄНТОВНО]]-TBL_Канцтовари[[#This Row],[ФАКТИЧНО]])","v":""}]
[null,"Інші витрати",{"v":100,"d":"100.00₴"},null,{"$f":"IF(OR(TBL_Канцтовари[[#This Row],[ОРІЄНТОВНО]]=\"\",TBL_Канцтовари[[#This Row],[ФАКТИЧНО]]=\"\"),\"\",TBL_Канцтовари[[#This Row],[ОРІЄНТОВНО]]-TBL_Канцтовари[[#This Row],[ФАКТИЧНО]])","v":""}]
[null,"ЗАГАЛЬНІ ВИТРАТИ НА КАНЦТОВАРИ",{"$f":"SUBTOTAL(109,TBL_Канцтовари[ОРІЄНТОВНО])","v":{"v":500,"d":"500.00₴"}},{"$f":"SUBTOTAL(109,TBL_Канцтовари[ФАКТИЧНО])","v":{"v":0,"d":"0.00₴"}},{"$f":"TBL_Канцтовари[[#Totals],[ОРІЄНТОВНО]]-TBL_Канцтовари[[#Totals],[ФАКТИЧНО]]","v":{"v":500,"d":"500.00₴"}}]
[]
[]
[null,"ВЕСІЛЬНІ ОБРУЧКИ","ОРІЄНТОВНО","ФАКТИЧНО","ВІДХИЛЕННЯ"]
[null,"Весільні обручки",{"v":1000,"d":"1,000.00₴"},null,{"$f":"IF(OR(TBL_ВесільніОбручки[[#This Row],[ОРІЄНТОВНО]]=\"\",TBL_ВесільніОбручки[[#This Row],[ФАКТИЧНО]]=\"\"),\"\",TBL_ВесільніОбручки[[#This Row],[ОРІЄНТОВНО]]-TBL_ВесільніОбручки[[#This Row],[ФАКТИЧНО]])","v":""}]
[null,"Аксесуари для обручок",{"v":100,"d":"100.00₴"},null,{"$f":"IF(OR(TBL_ВесільніОбручки[[#This Row],[ОРІЄНТОВНО]]=\"\",TBL_ВесільніОбручки[[#This Row],[ФАКТИЧНО]]=\"\"),\"\",TBL_ВесільніОбручки[[#This Row],[ОРІЄНТОВНО]]-TBL_ВесільніОбручки[[#This Row],[ФАКТИЧНО]])","v":""}]
[null,"ЗАГАЛЬНІ ВИТРАТИ НА ОБРУЧКИ",{"$f":"SUBTOTAL(109,TBL_ВесільніОбручки[ОРІЄНТОВНО])","v":{"v":1100,"d":"1,100.00₴"}},{"$f":"SUBTOTAL(109,TBL_ВесільніОбручки[ФАКТИЧНО])","v":{"v":0,"d":"0.00₴"}},{"$f":"TBL_ВесільніОбручки[[#Totals],[ОРІЄНТОВНО]]-TBL_ВесільніОбручки[[#Totals],[ФАКТИЧНО]]","v":{"v":1100,"d":"1,100.00₴"}}]
[]
[]
[null,"ТРАНСПОРТ  ","ОРІЄНТОВНО","ФАКТИЧНО","ВІДХИЛЕННЯ"]
[null,"Прокат основного авто",{"v":100,"d":"100.00₴"},null,{"$f":"IF(OR(TBL_Транспорт[[#This Row],[ОРІЄНТОВНО]]=\"\",TBL_Транспорт[[#This Row],[ФАКТИЧНО]]=\"\"),\"\",TBL_Транспорт[[#This Row],[ОРІЄНТОВНО]]-TBL_Транспорт[[#This Row],[ФАКТИЧНО]])","v":""}]
[null,"Прокат авто для гостей",{"v":100,"d":"100.00₴"},null,{"$f":"IF(OR(TBL_Транспорт[[#This Row],[ОРІЄНТОВНО]]=\"\",TBL_Транспорт[[#This Row],[ФАКТИЧНО]]=\"\"),\"\",TBL_Транспорт[[#This Row],[ОРІЄНТОВНО]]-TBL_Транспорт[[#This Row],[ФАКТИЧНО]])","v":""}]
[null,"Трансфер гостей з інших міст",{"v":100,"d":"100.00₴"},null,{"$f":"IF(OR(TBL_Транспорт[[#This Row],[ОРІЄНТОВНО]]=\"\",TBL_Транспорт[[#This Row],[ФАКТИЧНО]]=\"\"),\"\",TBL_Транспорт[[#This Row],[ОРІЄНТОВНО]]-TBL_Транспорт[[#This Row],[ФАКТИЧНО]])","v":""}]
[null,"Послуги паркувальника",{"v":50,"d":"50.00₴"},null,{"$f":"IF(OR(TBL_Транспорт[[#This Row],[ОРІЄНТОВНО]]=\"\",TBL_Транспорт[[#This Row],[ФАКТИЧНО]]=\"\"),\"\",TBL_Транспорт[[#This Row],[ОРІЄНТОВНО]]-TBL_Транспорт[[#This Row],[ФАКТИЧНО]])","v":""}]
[null,"Інші витрати",{"v":100,"d":"100.00₴"},null,{"$f":"IF(OR(TBL_Транспорт[[#This Row],[ОРІЄНТОВНО]]=\"\",TBL_Транспорт[[#This Row],[ФАКТИЧНО]]=\"\"),\"\",TBL_Транспорт[[#This Row],[ОРІЄНТОВНО]]-TBL_Транспорт[[#This Row],[ФАКТИЧНО]])","v":""}]
[null,"ЗАГАЛЬНІ ВИТРАТИ НА ТРАНСПОРТ І ПЕРЕВЕЗЕННЯ",{"$f":"SUBTOTAL(109,TBL_Транспорт[ОРІЄНТОВНО])","v":{"v":450,"d":"450.00₴"}},{"$f":"SUBTOTAL(109,TBL_Транспорт[ФАКТИЧНО])","v":{"v":0,"d":"0.00₴"}},{"$f":"TBL_Транспорт[[#Totals],[ОРІЄНТОВНО]]-TBL_Транспорт[[#Totals],[ФАКТИЧНО]]","v":{"v":450,"d":"450.00₴"}}]